{"text_format":"1","workbook":"xlsx","n_sheets":6,"sheets":["Factor","Anbar","Cash","Report","Sett","راهنما"],"not_rendered":{"charts":0,"images":1,"macros":1,"external_links":0,"defined_names":0,"comments":0,"pivot_tables":0},"unopened":[],"bounds":{"document_bytes":16777216,"sheet_cells":100000,"rows_first":2000,"rows_last":500,"rows_between":2000,"halvings":0,"cell_chars":16384,"cell_head_chars":4096},"cells_cut":0,"cells_raw":0,"read":"whole","date_system":"1900"}

{"sheet":"Factor","index":0,"n_rows":198,"n_cols":10,"rows_kept":198,"cut":false,"hidden":false,"merged":[[1,8,1,11],[1,4,1,7],[91,5,91,6],[37,8,38,9],[52,1,52,4],[53,1,53,6],[32,2,32,3],[28,3,28,5],[30,5,30,6],[29,5,29,6],[28,1,28,2],[30,1,30,3],[31,4,31,6],[31,2,31,3],[51,5,51,6],[4,4,5,8],[111,9,111,10],[112,9,112,10],[110,1,110,6],[130,1,130,6],[52,5,52,6],[111,4,111,6],[111,7,111,8],[112,4,112,6],[112,7,112,8],[93,1,93,6],[70,1,70,3],[70,5,70,6],[71,2,71,3],[71,4,71,6],[72,2,72,3],[92,1,92,4],[153,9,153,10],[131,4,131,6],[131,7,131,8],[131,9,131,10],[132,4,132,6],[132,7,132,8],[132,9,132,10],[171,9,171,10],[151,1,151,6],[197,4,197,6],[197,7,197,8],[197,9,197,10],[172,4,172,6],[172,7,172,8],[172,9,172,10],[195,1,195,6],[196,4,196,6],[196,7,196,8],[196,9,196,10],[152,4,152,6],[152,7,152,8],[152,9,152,10],[153,4,153,6],[7,4,8,8],[170,1,170,6],[171,4,171,6],[171,7,171,8],[153,7,153,8],[92,5,92,6],[68,1,68,2],[68,3,68,5],[69,5,69,6]]}
[]
[null,25,1,93," بسم الله الرحمن الرحيم",null,null,null,"لطفا تاريخ امروز را در سمت راست وارد نمائيد"]
[]
[]
[null,null,null,null,"نرم افزار فروش كالا و خدمات نسخه ساده ، تحت اكسل"]
[]
[]
[null,null,null,null,"مركز دانلود كاربردي اكسل        www.ExcelApps.Blogfa.com"]
[]
[]
[]
[]
[]
[]
[]
[]
[]
[]
[]
[]
[]
[]
[]
[]
[]
[]
[]
[]
[null,"فاكتور فروش",null,{"$f":"Sett!C4","v":"فروشگاه بزرگ  نمونه"},null,null,{"$f":"Report!E23","v":1}]
[null,"تاريخ :",{"$f":"B2","v":25},{"$f":"C2","v":1},"تخفيف نقدي :"]
[null,"مشتري محترم",null,null,"قابل پرداخت :",{"$f":"SUM(G34:G51)-F30","v":0}]
[null,"پرداخت :","نقدي"]
[null,"كد كالا","مقدار",null,"نام كالا","في واحد","مبلغ"]
[null,null,{"$f":"IF(B34>0,1,0)","v":0},{"$f":"IF(B34>0,VLOOKUP(B34,anbar[],2,FALSE),0)","v":0},{"$f":"IF(B34>0,VLOOKUP(B34,anbar[],3,FALSE),0)","v":0},{"$f":"IF(B34>0,VLOOKUP(B34,anbar[],5,FALSE),0)","v":0},{"$f":"C34*F34","v":0},{"$f":"(IF(B34>0,VLOOKUP(B34,anbar[],5,FALSE),0)-IF(B34>0,VLOOKUP(B34,anbar[],4,FALSE),0))*C34","v":0}]
[null,null,{"$f":"IF(B35>0,1,0)","v":0},{"$f":"IF(B35>0,VLOOKUP(B35,anbar[],2,FALSE),0)","v":0},{"$f":"IF(B35>0,VLOOKUP(B35,anbar[],3,FALSE),0)","v":0},{"$f":"IF(B35>0,VLOOKUP(B35,anbar[],5,FALSE),0)","v":0},{"$f":"C35*F35","v":0},{"$f":"(IF(B35>0,VLOOKUP(B35,anbar[],5,FALSE),0)-IF(B35>0,VLOOKUP(B35,anbar[],4,FALSE),0))*C35","v":0}]
[null,null,0,{"$f":"IF(B36>0,VLOOKUP(B36,anbar[],2,FALSE),0)","v":0},{"$f":"IF(B36>0,VLOOKUP(B36,anbar[],3,FALSE),0)","v":0},{"$f":"IF(B36>0,VLOOKUP(B36,anbar[],5,FALSE),0)","v":0},0,{"$f":"(IF(B36>0,VLOOKUP(B36,anbar[],5,FALSE),0)-IF(B36>0,VLOOKUP(B36,anbar[],4,FALSE),0))*C36","v":0}]
[null,null,0,{"$f":"IF(B37>0,VLOOKUP(B37,anbar[],2,FALSE),0)","v":0},{"$f":"IF(B37>0,VLOOKUP(B37,anbar[],3,FALSE),0)","v":0},{"$f":"IF(B37>0,VLOOKUP(B37,anbar[],5,FALSE),0)","v":0},0,{"$f":"(IF(B37>0,VLOOKUP(B37,anbar[],5,FALSE),0)-IF(B37>0,VLOOKUP(B37,anbar[],4,FALSE),0))*C37","v":0}]
[null,null,0,{"$f":"IF(B38>0,VLOOKUP(B38,anbar[],2,FALSE),0)","v":0},{"$f":"IF(B38>0,VLOOKUP(B38,anbar[],3,FALSE),0)","v":0},{"$f":"IF(B38>0,VLOOKUP(B38,anbar[],5,FALSE),0)","v":0},0,{"$f":"(IF(B38>0,VLOOKUP(B38,anbar[],5,FALSE),0)-IF(B38>0,VLOOKUP(B38,anbar[],4,FALSE),0))*C38","v":0},{"$f":"SUM(H34:H51)","v":0}]
[null,null,0,{"$f":"IF(B39>0,VLOOKUP(B39,anbar[],2,FALSE),0)","v":0},{"$f":"IF(B39>0,VLOOKUP(B39,anbar[],3,FALSE),0)","v":0},{"$f":"IF(B39>0,VLOOKUP(B39,anbar[],5,FALSE),0)","v":0},0,{"$f":"(IF(B39>0,VLOOKUP(B39,anbar[],5,FALSE),0)-IF(B39>0,VLOOKUP(B39,anbar[],4,FALSE),0))*C39","v":0}]
[null,null,0,{"$f":"IF(B40>0,VLOOKUP(B40,anbar[],2,FALSE),0)","v":0},{"$f":"IF(B40>0,VLOOKUP(B40,anbar[],3,FALSE),0)","v":0},{"$f":"IF(B40>0,VLOOKUP(B40,anbar[],5,FALSE),0)","v":0},0,{"$f":"(IF(B40>0,VLOOKUP(B40,anbar[],5,FALSE),0)-IF(B40>0,VLOOKUP(B40,anbar[],4,FALSE),0))*C40","v":0}]
[null,null,0,{"$f":"IF(B41>0,VLOOKUP(B41,anbar[],2,FALSE),0)","v":0},{"$f":"IF(B41>0,VLOOKUP(B41,anbar[],3,FALSE),0)","v":0},{"$f":"IF(B41>0,VLOOKUP(B41,anbar[],5,FALSE),0)","v":0},0,{"$f":"(IF(B41>0,VLOOKUP(B41,anbar[],5,FALSE),0)-IF(B41>0,VLOOKUP(B41,anbar[],4,FALSE),0))*C41","v":0}]
[null,null,0,{"$f":"IF(B42>0,VLOOKUP(B42,anbar[],2,FALSE),0)","v":0},{"$f":"IF(B42>0,VLOOKUP(B42,anbar[],3,FALSE),0)","v":0},{"$f":"IF(B42>0,VLOOKUP(B42,anbar[],5,FALSE),0)","v":0},0,{"$f":"(IF(B42>0,VLOOKUP(B42,anbar[],5,FALSE),0)-IF(B42>0,VLOOKUP(B42,anbar[],4,FALSE),0))*C42","v":0}]
[null,null,0,{"$f":"IF(B43>0,VLOOKUP(B43,anbar[],2,FALSE),0)","v":0},{"$f":"IF(B43>0,VLOOKUP(B43,anbar[],3,FALSE),0)","v":0},{"$f":"IF(B43>0,VLOOKUP(B43,anbar[],5,FALSE),0)","v":0},0,{"$f":"(IF(B43>0,VLOOKUP(B43,anbar[],5,FALSE),0)-IF(B43>0,VLOOKUP(B43,anbar[],4,FALSE),0))*C43","v":0}]
[null,null,0,{"$f":"IF(B44>0,VLOOKUP(B44,anbar[],2,FALSE),0)","v":0},{"$f":"IF(B44>0,VLOOKUP(B44,anbar[],3,FALSE),0)","v":0},{"$f":"IF(B44>0,VLOOKUP(B44,anbar[],5,FALSE),0)","v":0},0,{"$f":"(IF(B44>0,VLOOKUP(B44,anbar[],5,FALSE),0)-IF(B44>0,VLOOKUP(B44,anbar[],4,FALSE),0))*C44","v":0}]
[null,null,0,{"$f":"IF(B45>0,VLOOKUP(B45,anbar[],2,FALSE),0)","v":0},{"$f":"IF(B45>0,VLOOKUP(B45,anbar[],3,FALSE),0)","v":0},{"$f":"IF(B45>0,VLOOKUP(B45,anbar[],5,FALSE),0)","v":0},0,{"$f":"(IF(B45>0,VLOOKUP(B45,anbar[],5,FALSE),0)-IF(B45>0,VLOOKUP(B45,anbar[],4,FALSE),0))*C45","v":0}]
[null,null,0,{"$f":"IF(B46>0,VLOOKUP(B46,anbar[],2,FALSE),0)","v":0},{"$f":"IF(B46>0,VLOOKUP(B46,anbar[],3,FALSE),0)","v":0},{"$f":"IF(B46>0,VLOOKUP(B46,anbar[],5,FALSE),0)","v":0},0,{"$f":"(IF(B46>0,VLOOKUP(B46,anbar[],5,FALSE),0)-IF(B46>0,VLOOKUP(B46,anbar[],4,FALSE),0))*C46","v":0}]
[null,null,0,{"$f":"IF(B47>0,VLOOKUP(B47,anbar[],2,FALSE),0)","v":0},{"$f":"IF(B47>0,VLOOKUP(B47,anbar[],3,FALSE),0)","v":0},{"$f":"IF(B47>0,VLOOKUP(B47,anbar[],5,FALSE),0)","v":0},0,{"$f":"(IF(B47>0,VLOOKUP(B47,anbar[],5,FALSE),0)-IF(B47>0,VLOOKUP(B47,anbar[],4,FALSE),0))*C47","v":0}]
[null,null,0,{"$f":"IF(B48>0,VLOOKUP(B48,anbar[],2,FALSE),0)","v":0},{"$f":"IF(B48>0,VLOOKUP(B48,anbar[],3,FALSE),0)","v":0},{"$f":"IF(B48>0,VLOOKUP(B48,anbar[],5,FALSE),0)","v":0},0,{"$f":"(IF(B48>0,VLOOKUP(B48,anbar[],5,FALSE),0)-IF(B48>0,VLOOKUP(B48,anbar[],4,FALSE),0))*C48","v":0}]
[null,null,0,{"$f":"IF(B49>0,VLOOKUP(B49,anbar[],2,FALSE),0)","v":0},{"$f":"IF(B49>0,VLOOKUP(B49,anbar[],3,FALSE),0)","v":0},{"$f":"IF(B49>0,VLOOKUP(B49,anbar[],5,FALSE),0)","v":0},0,{"$f":"(IF(B49>0,VLOOKUP(B49,anbar[],5,FALSE),0)-IF(B49>0,VLOOKUP(B49,anbar[],4,FALSE),0))*C49","v":0}]
[null,null,0,{"$f":"IF(B50>0,VLOOKUP(B50,anbar[],2,FALSE),0)","v":0},{"$f":"IF(B50>0,VLOOKUP(B50,anbar[],3,FALSE),0)","v":0},{"$f":"IF(B50>0,VLOOKUP(B50,anbar[],5,FALSE),0)","v":0},0,{"$f":"(IF(B50>0,VLOOKUP(B50,anbar[],5,FALSE),0)-IF(B50>0,VLOOKUP(B50,anbar[],4,FALSE),0))*C50","v":0}]
[null,null,0,{"$f":"IF(B51>0,VLOOKUP(B51,anbar[],2,FALSE),0)","v":0},{"$f":"IF(B51>0,VLOOKUP(B51,anbar[],3,FALSE),0)","v":0},{"$f":"IF(B51>0,VLOOKUP(B51,anbar[],5,FALSE),0)","v":0},0,{"$f":"(IF(B51>0,VLOOKUP(B51,anbar[],5,FALSE),0)-IF(B51>0,VLOOKUP(B51,anbar[],4,FALSE),0))*C51","v":0}]
[null,null,null,null,"مجموع فاكتور :",{"$f":"SUM(G34:G51)","v":0}]
[null,{"$f":"Sett!C5","v":"آدرس فروشگاه يا شركت خود را در اينجا وارد نماييد ."},null,null,null,{"$f":"Sett!F4","v":"0234-4578332"}]
[null,{"$f":"Sett!C6","v":"اميدواريم در خريد هاي بعدي نيز ميزبان شما مشتري عزيز باشيم . . ."}]
[]
[]
[]
[]
[]
[]
[]
[]
[]
[]
[]
[]
[]
[]
[null,"فاكتور خريد",null,{"$f":"Sett!C4","v":"فروشگاه بزرگ  نمونه"},null,null,{"$f":"Report!N23","v":1}]
[null,"تاريخ :",{"$f":"B2","v":25},{"$f":"C2","v":1},"تخفيف نقدي :"]
[null,"تامين كننده متفرقه",null,null,"قابل پرداخت :",{"$f":"SUM(G74:G91)-F70","v":0}]
[null,"پرداخت :","نقدي"]
[null,"كد كالا","مقدار",null,"نام كالا","في واحد","مبلغ"]
[null,null,{"$f":"IF(B74>0,1,0)","v":0},{"$f":"IF(B74>0,VLOOKUP(B74,anbar[],2,FALSE),0)","v":0},{"$f":"IF(B74>0,VLOOKUP(B74,anbar[],3,FALSE),0)","v":0},{"$f":"IF(B74>0,VLOOKUP(B74,anbar[],4,FALSE),0)","v":0},{"$f":"C74*F74","v":0}]
[null,null,{"$f":"IF(B75>0,1,0)","v":0},{"$f":"IF(B75>0,VLOOKUP(B75,anbar[],2,FALSE),0)","v":0},{"$f":"IF(B75>0,VLOOKUP(B75,anbar[],3,FALSE),0)","v":0},{"$f":"IF(B75>0,VLOOKUP(B75,anbar[],4,FALSE),0)","v":0},{"$f":"C75*F75","v":0}]
[null,null,0,{"$f":"IF(B76>0,VLOOKUP(B76,anbar[],2,FALSE),0)","v":0},{"$f":"IF(B76>0,VLOOKUP(B76,anbar[],3,FALSE),0)","v":0},{"$f":"IF(B76>0,VLOOKUP(B76,anbar[],4,FALSE),0)","v":0},0]
[null,null,0,{"$f":"IF(B77>0,VLOOKUP(B77,anbar[],2,FALSE),0)","v":0},{"$f":"IF(B77>0,VLOOKUP(B77,anbar[],3,FALSE),0)","v":0},{"$f":"IF(B77>0,VLOOKUP(B77,anbar[],4,FALSE),0)","v":0},0]
[null,null,0,{"$f":"IF(B78>0,VLOOKUP(B78,anbar[],2,FALSE),0)","v":0},{"$f":"IF(B78>0,VLOOKUP(B78,anbar[],3,FALSE),0)","v":0},{"$f":"IF(B78>0,VLOOKUP(B78,anbar[],4,FALSE),0)","v":0},0]
[null,null,0,{"$f":"IF(B79>0,VLOOKUP(B79,anbar[],2,FALSE),0)","v":0},{"$f":"IF(B79>0,VLOOKUP(B79,anbar[],3,FALSE),0)","v":0},{"$f":"IF(B79>0,VLOOKUP(B79,anbar[],4,FALSE),0)","v":0},0]
[null,null,0,{"$f":"IF(B80>0,VLOOKUP(B80,anbar[],2,FALSE),0)","v":0},{"$f":"IF(B80>0,VLOOKUP(B80,anbar[],3,FALSE),0)","v":0},{"$f":"IF(B80>0,VLOOKUP(B80,anbar[],4,FALSE),0)","v":0},0]
[null,null,0,{"$f":"IF(B81>0,VLOOKUP(B81,anbar[],2,FALSE),0)","v":0},{"$f":"IF(B81>0,VLOOKUP(B81,anbar[],3,FALSE),0)","v":0},{"$f":"IF(B81>0,VLOOKUP(B81,anbar[],4,FALSE),0)","v":0},0]
[null,null,0,{"$f":"IF(B82>0,VLOOKUP(B82,anbar[],2,FALSE),0)","v":0},{"$f":"IF(B82>0,VLOOKUP(B82,anbar[],3,FALSE),0)","v":0},{"$f":"IF(B82>0,VLOOKUP(B82,anbar[],4,FALSE),0)","v":0},0]
[null,null,0,{"$f":"IF(B83>0,VLOOKUP(B83,anbar[],2,FALSE),0)","v":0},{"$f":"IF(B83>0,VLOOKUP(B83,anbar[],3,FALSE),0)","v":0},{"$f":"IF(B83>0,VLOOKUP(B83,anbar[],4,FALSE),0)","v":0},0]
[null,null,0,{"$f":"IF(B84>0,VLOOKUP(B84,anbar[],2,FALSE),0)","v":0},{"$f":"IF(B84>0,VLOOKUP(B84,anbar[],3,FALSE),0)","v":0},{"$f":"IF(B84>0,VLOOKUP(B84,anbar[],4,FALSE),0)","v":0},0]
[null,null,0,{"$f":"IF(B85>0,VLOOKUP(B85,anbar[],2,FALSE),0)","v":0},{"$f":"IF(B85>0,VLOOKUP(B85,anbar[],3,FALSE),0)","v":0},{"$f":"IF(B85>0,VLOOKUP(B85,anbar[],4,FALSE),0)","v":0},0]
[null,null,0,{"$f":"IF(B86>0,VLOOKUP(B86,anbar[],2,FALSE),0)","v":0},{"$f":"IF(B86>0,VLOOKUP(B86,anbar[],3,FALSE),0)","v":0},{"$f":"IF(B86>0,VLOOKUP(B86,anbar[],4,FALSE),0)","v":0},0]
[null,null,0,{"$f":"IF(B87>0,VLOOKUP(B87,anbar[],2,FALSE),0)","v":0},{"$f":"IF(B87>0,VLOOKUP(B87,anbar[],3,FALSE),0)","v":0},{"$f":"IF(B87>0,VLOOKUP(B87,anbar[],4,FALSE),0)","v":0},0]
[null,null,0,{"$f":"IF(B88>0,VLOOKUP(B88,anbar[],2,FALSE),0)","v":0},{"$f":"IF(B88>0,VLOOKUP(B88,anbar[],3,FALSE),0)","v":0},{"$f":"IF(B88>0,VLOOKUP(B88,anbar[],4,FALSE),0)","v":0},0]
[null,null,0,{"$f":"IF(B89>0,VLOOKUP(B89,anbar[],2,FALSE),0)","v":0},{"$f":"IF(B89>0,VLOOKUP(B89,anbar[],3,FALSE),0)","v":0},{"$f":"IF(B89>0,VLOOKUP(B89,anbar[],4,FALSE),0)","v":0},0]
[null,null,0,{"$f":"IF(B90>0,VLOOKUP(B90,anbar[],2,FALSE),0)","v":0},{"$f":"IF(B90>0,VLOOKUP(B90,anbar[],3,FALSE),0)","v":0},{"$f":"IF(B90>0,VLOOKUP(B90,anbar[],4,FALSE),0)","v":0},0]
[null,null,0,{"$f":"IF(B91>0,VLOOKUP(B91,anbar[],2,FALSE),0)","v":0},{"$f":"IF(B91>0,VLOOKUP(B91,anbar[],3,FALSE),0)","v":0},{"$f":"IF(B91>0,VLOOKUP(B91,anbar[],4,FALSE),0)","v":0},0]
[null,null,null,null,"مجموع فاكتور :",{"$f":"SUM(G74:G91)","v":0}]
[null,{"$f":"Sett!C5","v":"آدرس فروشگاه يا شركت خود را در اينجا وارد نماييد ."},null,null,null,{"$f":"Sett!F4","v":"0234-4578332"}]
[null,{"$f":"Sett!C7","v":"كليه اقلام ثبت شده به طور صحيح و سالم دريافت گرديد . . ."}]
[]
[]
[]
[]
[]
[]
[]
[]
[]
[]
[]
[]
[]
[]
[]
[]
[null,"ثبت دريافت نقدي"]
[null,"نوع","روز","ماه","توضيحات",null,null,"طرف حساب",null,"مبلغ"]
[null,"دريافت"]
[]
[]
[]
[]
[]
[]
[]
[]
[]
[]
[]
[]
[]
[]
[]
[]
[]
[null,"ثبت پرداخت نقدي"]
[null,"نوع","روز","ماه","توضيحات",null,null,"طرف حساب",null,"مبلغ"]
[null,"پرداخت"]
[]
[]
[]
[]
[]
[]
[]
[]
[]
[]
[]
[]
[]
[]
[]
[]
[]
[]
[null,"ثبت هزينه نقدي"]
[null,"نوع","روز","ماه","توضيحات",null,null,"حساب",null,"مبلغ"]
[null,"هزينه"]
[]
[]
[]
[]
[]
[]
[]
[]
[]
[]
[]
[]
[]
[]
[]
[]
[null,"ثبت درآمد نقدي"]
[null,"نوع","روز","ماه","توضيحات",null,null,"حساب",null,"مبلغ"]
[null,"درآمد"]
[]
[]
[]
[]
[]
[]
[]
[]
[]
[]
[]
[]
[]
[]
[]
[]
[]
[]
[]
[]
[]
[]
[null,"ثبت خسارت مالي"]
[null,"نوع","روز","ماه","توضيحات",null,null,"حساب",null,"مبلغ"]
[null,"خسارت"]

{"sheet":"Anbar","index":1,"n_rows":106,"n_cols":9,"rows_kept":106,"cut":false,"hidden":false,"merged":[[0,0,0,1],[2,1,2,8]]}
[]
[]
[null,"ليست كالاها يا خدمات شما"]
[]
[]
[null,"كد كالا","واحد","نام كالا","خريد","فروش","گروه","برند","تامين كننده"]
[null,1,"عدد","كالاي شماره يك",2300,3200,"مواد غذايي","ساير موارد","تامين كننده متفرقه"]
[null,2,"كيلو","كالاي شماره دو",4500,6200,"مواد بهداشتي","ساير موارد","تامين كننده متفرقه"]
[null,3]
[null,4]
[null,5]
[null,6]
[null,7]
[null,8]
[null,9]
[null,10]
[null,11]
[null,12]
[null,13]
[null,14]
[null,15]
[null,16]
[null,17]
[null,18]
[null,19]
[null,20]
[null,21]
[null,22]
[null,23]
[null,24]
[null,25]
[null,26]
[null,27]
[null,28]
[null,29]
[null,30]
[null,31]
[null,32]
[null,33]
[null,34]
[null,35]
[null,36]
[null,37]
[null,38]
[null,39]
[null,40]
[null,41]
[null,42]
[null,43]
[null,44]
[null,45]
[null,46]
[null,47]
[null,48]
[null,49]
[null,50]
[null,51]
[null,52]
[null,53]
[null,54]
[null,55]
[null,56]
[null,57]
[null,58]
[null,59]
[null,60]
[null,61]
[null,62]
[null,63]
[null,64]
[null,65]
[null,66]
[null,67]
[null,68]
[null,69]
[null,70]
[null,71]
[null,72]
[null,73]
[null,74]
[null,75]
[null,76]
[null,77]
[null,78]
[null,79]
[null,80]
[null,81]
[null,82]
[null,83]
[null,84]
[null,85]
[null,86]
[null,87]
[null,88]
[null,89]
[null,90]
[null,91]
[null,92]
[null,93]
[null,94]
[null,95]
[null,96]
[null,97]
[null,98]
[null,99]
[null,100]

{"sheet":"Cash","index":2,"n_rows":9,"n_cols":7,"rows_kept":9,"cut":false,"hidden":false,"merged":[[7,1,7,6],[0,0,0,1]]}
[]
[null,{"$f":"Factor!C113","v":0},{"$f":"Factor!D113","v":0},{"$f":"Factor!B113","v":"دريافت"},{"$f":"Factor!H113","v":0},{"$f":"Factor!J113","v":0},{"$f":"Factor!E113","v":0}]
[null,{"$f":"Factor!C133","v":0},{"$f":"Factor!D133","v":0},{"$f":"Factor!B133","v":"پرداخت"},{"$f":"Factor!H133","v":0},{"$f":"Factor!J133","v":0},{"$f":"Factor!E133","v":0}]
[null,{"$f":"Factor!C154","v":0},{"$f":"Factor!D154","v":0},{"$f":"Factor!B154","v":"هزينه"},{"$f":"Factor!H154","v":0},{"$f":"Factor!J154","v":0},{"$f":"Factor!E154","v":0}]
[null,{"$f":"Factor!C173","v":0},{"$f":"Factor!D173","v":0},{"$f":"Factor!B173","v":"درآمد"},{"$f":"Factor!H173","v":0},{"$f":"Factor!J173","v":0},{"$f":"Factor!E173","v":0}]
[null,{"$f":"Factor!C198","v":0},{"$f":"Factor!D198","v":0},{"$f":"Factor!B198","v":"خسارت"},{"$f":"Factor!H198","v":0},{"$f":"Factor!J198","v":0},{"$f":"Factor!E198","v":0}]
[{"$f":"COUNTA(tarakonesh[[#Data],[روز]])+10","v":10}]
[null,"ليست تراكنش هاي مالي"]
[null,"روز","ماه","نوع","طرف حساب","مبلغ","توضيحات"]

{"sheet":"Report","index":3,"n_rows":26,"n_cols":18,"rows_kept":26,"cut":false,"hidden":false,"merged":[[10,12,10,14],[10,15,10,16],[8,12,8,14],[8,15,8,16],[0,0,0,2],[9,12,9,14],[9,15,9,16],[1,5,1,6],[1,7,1,9],[9,7,9,9],[10,7,10,9],[1,12,1,14],[1,15,1,16],[2,12,2,14],[2,15,2,16],[8,7,8,9],[8,5,8,6],[9,5,9,6],[10,5,10,6],[2,7,2,9],[3,7,3,9],[4,7,4,9],[5,7,5,9],[6,7,6,9],[7,7,7,9],[3,5,3,6],[4,5,4,6],[5,5,5,6],[6,5,6,6],[7,5,7,6],[7,15,7,16],[3,12,3,14],[3,15,3,16],[4,12,4,14],[4,15,4,16],[5,15,5,16],[6,15,6,16],[5,12,5,14],[6,12,6,14],[7,12,7,14],[10,1,10,4],[23,10,23,12],[1,3,1,4],[1,1,1,2],[24,1,24,8],[2,1,2,4],[8,1,8,4],[9,1,9,4],[3,1,3,4],[4,1,4,4],[5,1,5,4],[6,1,6,4],[7,1,7,4],[23,1,23,3],[24,10,24,17],[2,5,2,6]]}
[]
[null,2,null,{"$f":"IF(B2>0,VLOOKUP(B2,codes[],2,FALSE),0)","v":"ارديبهشت"},null,"دوره جاري",null,"در مجموع",null,null,null,null,"عنوان",null,null,"مقدار"]
[null,"كل فروش",null,null,null,{"$f":"SUMIFS(foroosh[[#Data],[مبلغ]],foroosh[[#Data],[M]],B2)","v":0},null,{"$f":"SUM(foroosh[[#Data],[مبلغ]])","v":0}]
[null,"تخفيف فروش",null,null,null,{"$f":"SUMIFS(foroosh[[#Data],[تخفيف]],foroosh[[#Data],[M]],B2)","v":0},null,{"$f":"SUM(foroosh[[#Data],[تخفيف]])","v":0}]
[null,"كل خريد",null,null,null,{"$f":"SUMIFS(kharid[[#Data],[مبلغ]],kharid[[#Data],[M]],B2)","v":0},null,{"$f":"SUM(kharid[[#Data],[مبلغ]])","v":0}]
[null,"تخفيف خريد",null,null,null,{"$f":"SUMIFS(kharid[[#Data],[تخفيف]],kharid[[#Data],[M]],B2)","v":0},null,{"$f":"SUM(kharid[[#Data],[تخفيف]])","v":0}]
[null,"درآمد فروش",null,null,null,{"$f":"SUMIFS(foroosh[[#Data],[سود]],foroosh[[#Data],[M]],B2)","v":0},null,{"$f":"SUM(foroosh[[#Data],[سود]])","v":0}]
[null,"هزينه ها",null,null,null,{"$f":"SUMIFS(tarakonesh[[#Data],[مبلغ]],tarakonesh[[#Data],[نوع]],Cash!D4,tarakonesh[[#Data],[ماه]],B2)","v":0},null,{"$f":"SUMIFS(tarakonesh[[#Data],[مبلغ]],tarakonesh[[#Data],[نوع]],Cash!D4)","v":0}]
[null,"درآمد ها",null,null,null,{"$f":"SUMIFS(tarakonesh[[#Data],[مبلغ]],tarakonesh[[#Data],[نوع]],Cash!D5,tarakonesh[[#Data],[ماه]],B2)","v":0},null,{"$f":"SUMIFS(tarakonesh[[#Data],[مبلغ]],tarakonesh[[#Data],[نوع]],Cash!D5)","v":0}]
[null,"خسارت ها",null,null,null,{"$f":"SUMIFS(tarakonesh[[#Data],[مبلغ]],tarakonesh[[#Data],[نوع]],Cash!D6,tarakonesh[[#Data],[ماه]],B2)","v":0},null,{"$f":"SUMIFS(tarakonesh[[#Data],[مبلغ]],tarakonesh[[#Data],[نوع]],Cash!D6)","v":0}]
[null,"سود خالص",null,null,null,{"$f":"F7-F4+F6-F8+F9-F10","v":0},null,{"$f":"H7+H9+H6-H4-H8-H10","v":0}]
[]
[]
[]
[]
[]
[]
[]
[]
[]
[]
[]
[null,{"$f":"Factor!C30","v":25},{"$f":"Factor!D30","v":1},{"$f":"Factor!C32","v":"نقدي"},{"$f":"COUNTA(foroosh[[#Data],[كد]])+1","v":1},{"$f":"Factor!B31","v":"مشتري محترم"},{"$f":"Factor!F31+Factor!F30","v":0},{"$f":"Factor!F30","v":0},{"$f":"Factor!I38","v":0},null,{"$f":"Factor!C70","v":25},{"$f":"Factor!D70","v":1},{"$f":"Factor!C72","v":"نقدي"},{"$f":"COUNTA(kharid[[#Data],[كد]])+1","v":1},{"$f":"Factor!B71","v":"تامين كننده متفرقه"},{"$f":"Factor!F92","v":0},{"$f":"Factor!F70","v":0},{"$f":"Factor!F71","v":0}]
[null,{"$f":"COUNTA(foroosh[[#Data],[D]])+27","v":27},null,null,null,null,null,null,null,null,{"$f":"COUNTA(kharid[[#Data],[D]])+27","v":27}]
[null,"فاكتورهاي فروش",null,null,null,null,null,null,null,null,"فاكتورهاي خريد"]
[null,"D","M","پرداخت","كد","طرف حساب","مبلغ","تخفيف","سود",null,"D","M","پرداخت","كد","طرف حساب","مبلغ","تخفيف","پرداختي"]

{"sheet":"Sett","index":4,"n_rows":37,"n_cols":13,"rows_kept":37,"cut":false,"hidden":false,"merged":[[22,1,22,2],[9,1,10,5],[19,1,19,2],[17,1,17,2],[15,1,15,2],[13,1,13,2],[11,1,11,2],[6,2,6,5],[2,7,2,9],[0,0,0,1],[2,10,2,12],[3,2,3,3],[4,2,4,5],[5,2,5,5],[2,1,2,5]]}
[]
[]
[null,"اطلاعات كلي و معرفي شركت يا فروشگاه",null,null,null,null,null,"تامين كنندگان شما",null,null,"مشتريان شما"]
[null,"نام شما :","فروشگاه بزرگ  نمونه",null,"تلفن :","0234-4578332",null,"كد","نام","تلفن","كد","نام","تلفن"]
[null,"آدرس شما :","آدرس فروشگاه يا شركت خود را در اينجا وارد نماييد .",null,null,null,null,101,"تامين كننده متفرقه",12345678,201,"مشتري محترم",12345678]
[null,"توضيح فروش :","اميدواريم در خريد هاي بعدي نيز ميزبان شما مشتري عزيز باشيم . . .",null,null,null,null,102,null,null,202]
[null,"توضيح خريد :","كليه اقلام ثبت شده به طور صحيح و سالم دريافت گرديد . . .",null,null,null,null,103,null,null,203]
[null,null,null,null,null,null,null,104,null,null,204]
[null,null,null,null,null,null,null,105,null,null,205]
[null,"اطلاعات حسابداري و مالي",null,null,null,null,null,106,null,null,206]
[null,null,null,null,null,null,null,107,null,null,207]
[null,"انواع مناسبات :",null,null,null,null,null,108,null,null,208]
[null,"نقدي","نسيه","چكي","سفته اي","اعتباري",null,109,null,null,209]
[null,"انواع تراكنش ها :",null,null,null,null,null,110,null,null,210]
[null,"دريافت","پرداخت","هزينه","درآمد","خسارت",null,111,null,null,211]
[null,"انواع هزينه ها :",null,null,null,null,null,112,null,null,212]
[null,"قبوض پرداختي","خريد ملزومات","حقوق كاركنان","اجاره بهاء","ساير موارد",null,113,null,null,213]
[null,"انواع درآمد ها : ",null,null,null,null,null,114,null,null,214]
[null,"فروش اماني","فروش دارايي","دريافت اجاره","ساير موارد",null,null,115,null,null,215]
[null,"انواع خسارت ها :",null,null,null,null,null,116,null,null,216]
[null,"ضايعات كالا","سرقت كالا","جريمه نقدي","ساير موارد",null,null,117,null,null,217]
[null,null,null,null,null,null,null,118,null,null,218]
[null,null,null,null,null,null,null,119,null,null,219]
[null,"كد","عنوان",null,null,null,null,120,null,null,220]
[null,93,1393,null,null,null,null,121,null,null,221]
[null,1,"فروردين",null,null,null,null,122,null,null,222]
[null,2,"ارديبهشت",null,null,null,null,123,null,null,223]
[null,3,"خرداد",null,null,null,null,124,null,null,224]
[null,4,"تير",null,null,null,null,125,null,null,225]
[null,5,"مرداد"]
[null,6,"شهريور"]
[null,7,"مهر"]
[null,8,"آبان"]
[null,9,"آذر"]
[null,10,"دي"]
[null,11,"بهمن"]
[null,12,"اسفند"]

{"sheet":"راهنما","index":5,"n_rows":32,"n_cols":19,"rows_kept":32,"cut":false,"hidden":false,"merged":[[23,1,23,19],[24,1,24,19],[25,1,25,19],[17,1,17,19],[18,1,18,19],[19,1,19,19],[20,1,20,19],[21,1,21,19],[22,1,22,19],[5,7,5,15],[2,7,2,15],[3,7,3,15],[4,7,4,15],[16,1,16,19],[6,7,6,15],[7,7,7,16],[8,7,8,16],[9,7,9,16],[10,7,10,16],[13,1,13,15],[11,1,11,19],[12,1,12,19],[14,1,14,15],[15,1,15,19],[0,0,0,1],[35,1,35,19],[28,1,28,19],[30,1,30,19],[31,1,31,19],[32,1,32,19],[33,1,33,19],[34,1,34,19],[26,1,26,19],[27,1,27,19],[29,1,29,19],[2,18,2,19],[9,1,10,5],[4,18,4,19],[6,18,6,19],[8,18,8,19]]}
[]
[]
[null,null,null,null,null,null,null,"نرم افزار حسابداري فروشگاهي ساده تحت اكسل",null,null,null,null,null,null,null,null,null,null,"مركز پشتيباني و پاسخگويي"]
[]
[null,null,null,null,null,null,null,"Software Version :  1.1",null,null,null,null,null,null,null,null,null,null,"دانلود فونت هاي استفاده شده"]
[]
[null,null,null,null,null,null,null,null,null,null,null,null,null,null,null,null,null,null,"آموزش فعال سازي ماكروها"]
[null,null,null,null,null,null,null,"اميدواريم اين نرم افزار مورد استفاده شما بوده و نيازهاي حسابداري و مالي تان را رفع نمايد"]
[null,null,null,null,null,null,null,"منتظر نظرات، پيشنهاد ها و انتقادات شما دوستان عزيز در جهت ارتقاء و بهبود آن مي باشيم",null,null,null,null,null,null,null,null,null,null,"سفارش طراحي اختصاصي"]
[null,null,null,null,null,null,null,"ايميل ارتباط مستقيم با ما :               appsrequest@gmail.com  "]
[]
[]
[null,"راهنماي استفاده از اين نرم افزار :                 كد فايل : 1202                                                                             توجه : كليه فايل هاي رايگان امكان افزودن و تغيير ايتم ها و ساير گزينه ها را ندارند ."]
[null,"* در ابتدا حتما ( جهت نمايش بهتر نوشته هاي صفحات ) فونت هاي همراه فايل و يا دانلود شده از سايت را بر روي سيستم خود نصب نماييد."]
[null,"* در طراحي اين فايل از ماكروها و زبان برنامه نويسي VB استفاده شده است. لذا لازم است در ابتدا اين قابليت ها را بر روي نرم افزار اكسل خود فعال نماييد."]
[null,"* در گام نخست در صفحه sett مشخصات فروشگاه و يا شركت خود را وارد نماييد. مي توانيد تامين كنندگان اصلي و مشتريان اصلي خود را نيز تا حداكثر 25 مورد براي هركدام در همان صفحه وارد كنيد."]
[null,"* پس از آن در صفحه anbar محصولات و يا كالاهايي كه عرضه مي كنيد را در جدول مربوطه ثبت نماييد. بهتر است جهت جستجو و دسته بندي بهتر همه مشخصات كالا را وراد كنيد. چنانچه كالايي را توليد مي كنيد"]
[null,"مي توانيد به جاي قيمت خريد هزينه تمام شده آنرا وارد كنيد. تامين كننده هر كالا را مي بايست از ليست تامين كنندگان كه قبلا در جدول مربوطه در صفحه sett معرفي كرده ايد انتخاب شود."]
[null,"* در صورتي كه قيمت خريد و يا فروش كالاي شما تغيير كرد در همان صفحه anbar مي بايست در اطلاعات كالا مبالغ جديد را اصلاح كنيد تا در فاكتورها آخرين قيمت ها آورده شود."]
[null,"* براي ثبت فاكتور فروش و خريد در صفحه factor بر روي ايكون هاي مورن نظر كليك نماييد. قبل از هر كاري در ابتداي روز حتما تاريخ روز جاري را در بالاي منوي اصلي در همان صفحه اصلاح نماييد تا در فاكتورها"]
[null,"تاريخ جاري نمايش داده شود. فقط ستون تعداد در فاكتورها قابل ويرايش است و قيمت خريد يا فروش از جدول ليست كالاها كه قبلا وارد كرده ايد خوانده مي شود. سطر اول فاكتور نيز قابل ويرايش نيست !"]
[null,"* پس از ورود كد كالاهاي مورد نظر و تعداد آنها در قسمت سربرگ فاكتور مشتري و يا فروشنده را از ليست انتخاب كرده و مقدار تخفيف را در خانه مربوط به آن وارد نماييد. در انتها اگر نياز به چاپ فاكتور داريد اول گزينه"]
[null,"چاپ را كليك كرده و بعد گزينه ثبت فاكتور را كليك نماييد. جهت ثبت برگشت از فروش كالاها نيز در فاكتور فروش تعداد آنها را منفي وارد نماييد."]
[null,"* جهت ثبت هزينه نقدي و يا درآمد حاشيه اي غير از فروش به صورت نقدي و همچنين خسارت هاي وارده و يا ثبت دريافت و پرداخت نقدي از بدهكاران و يا بستانكاران ، در منوي اصلي بر روي گزينه هاي مربوطه كليك"]
[null,"نماييد تا به فرم مربوطه برويد. در فرمها مقدار خانه اول رديف قابل تغيير نمي باشد و لازم است در قسمت حساب از ليست موجود گزينه مرتبط را انتخاب نماييد"]
[null,"* از ابتدا تا انتها با يك واحد پولي مشخص ( تومان يا ريال ) مقادير را وارد كنيد و تا آخر با همان واحد كار كنيد تا محاسبات اشتباه نشود. همچنين پيشنهاد مي شود براي هر سال از يك فايل استفاده كنيد، بدين معني كه"]
[null,"ابتدا از اين فايل يك كپي تهيه كرده و نام آنرا مثلا 1392 بگذاريد و در آن حسابداري فروش خود را انجام دهيد. براي سال بعد مثلا 1393 يك كپي ديگر از فايل خام اوليه تهيه كرده و فقط اطلاعات كالاهاي خورد را در "]
[null,"جدول ليست كالاها كپي نماييد. همچنين بهتر است بعد از اتمام روز و بستن فايل يك كپي از آن تهيه كرده و در مكان ديگري از كامپيوتر نگهداري كنيد تا در صورت انجام اشتباه آخرين نسخه از اطلاعات را داشته باشيد."]
[null,"* جهت مشاهده گزارش خريد و فروش خود مي توانيد از صفحه report استفاده نماييد. براي مشاهده گزارش هر ماه در خانه B2 در همان صفحه شماره ماه مورد نظر را وارد كنيد."]
[]
[null,"توجه : در صورتي كه نياز به ايجاد تغييراتي در اين فايل براي بهينه كردن آن براي كسب و كار خود هستيد مي توانيد براي دريافت رمز بكار برده شده در صفحات از طريق ايميل و يا فرم تماس وبلاگ با ما تماس بگيريد."]
[null,"همچنين اگر احتياج به يك برنامه تخصصي تر و حرفه اي تر براي كاربري راحت تر و سفارشي شده براي كسب و كار خود داريد ، مي توانيد سفارش طراحي آن را داده و در اسرع وقت با كمترين هزينه آنرا دريافت نماييد."]